Workbook

Sheet Mestaruussarja
B1: Tapio Väisänen | E1: 6.3.1949 Sotkamo
B2: MESTARUUSSARJA | E2: Runkosarja | I2: Kärkilyönnit (KL), pesänvälit | P2: Runkosarja TOP-30 | U2: Ylempi loppusarja | AB2: Alempi loppusarja | AI2: Arvo-ottelut | AM2: Mitalit
B3: Vuosi | C3: Sija | D3: Seura | E3: OTT | F3: KUN | G3: LÖI | H3: TOI | I3: KL | J3: 0 > 1 | K3: 1 > 2 | L3: 2 > 3 | M3: 3 > k | N3: KL-% | P3: LÖI | Q3: TOI | R3: L+T | S3: KL | U3: OTT | V3: KUN | W3: LÖI | X3: TOI | Y3: KL | Z3: KL-% | AB3: OTT | AC3: KUN | AD3: LÖI | AE3: TOI | AF3: KL | AG3: KL-% | AI3: IL | AJ3: LL | AK3: Cup | AL3: K | AM3: H | AN3: P
B4: 1974 | C4: 12. | D4: PuMu | E4: 21 | F4: 1 | G4: 9 | H4: 9
B5: 1975 | C5: 12. | D5: Lippo | E5: 22 | F5: 0 | G5: 18 | H5: 5 | P5: 18.
B6: 1976 | C6: 1. | D6: Lippo | F6: suomensarja
B7: 1977 | C7: 11. | D7: Lippo | E7: 22 | F7: 1 | G7: 26 | H7: 7 | I7: 116 | J7: 16 | K7: 32 | L7: 41 | M7: 27 | N7: ---- | P7: 7. | R7: 22. | S7: 14.
B8: 1978 | C8: 2. | D8: Lippo | F8: suomensarja
B9: 1979 | C9: 2. | D9: Lippo | F9: suomensarja | AK9: 1
B10: 1980 | C10: 2. | D10: Lippo | F10: suomensarja
B11: 1981 | C11: 3. | D11: Lippo | F11: ykkössarja
B12: 1982 | C12: 12. | D12: Lippo | E12: 17 | F12: 1 | G12: 9 | H12: 4 | I12: 45 | J12: 7 | K12: 12 | L12: 16 | M12: 10 | N12: 52.3 %
B13: 1983 | C13: 6. | D13: Lippo | F13: ykkössarja
B14: Yhteensä | E14: 82 | F14: 3 | G14: 62 | H14: 25 | I14: 161 | J14: 23 | K14: 44 | L14: 57 | M14: 37 | N14: 52.3 % | P14: 0-0-0 | Q14: 0-0-0 | R14: 0-0-0 | S14: 0-0-0 | U14: 0 | V14: 0 | W14: 0 | X14: 0 | Y14: 0 | Z14: 0.0 % | AB14: 0 | AC14: 0 | AD14: 0 | AE14: 0 | AF14: 0 | AG14: 0.0 % | AI14: 0 | AJ14: 0 | AK14: 1 | AL14: 0 | AM14: 0 | AN14: 0
B15: Pesispörssi | D15: 201.7
B17: URA SUPERISSA | E17: OTT | F17: KUN | G17: LÖI | H17: TOI | I17: KL | K17: ka/L | L17: ka/T | M17: ka/KL | N17: KL-% | P17: ENSIMMÄISET RUNKOSARJASSA | AG17: KATSOJIA YLI 5000
B18: Runkosarja | E18: 82 | F18: 3 | G18: 62 | H18: 25 | I18: 161 | K18: 0.79 | L18: 0.30 | M18: 4.13 | N18: 52.3 % | P18: Ottelu | R18: 05.05. 1974 PuMu - Kiri 2-11 | Y18: 1. ottelu | AB18: 25 v 1 kk 29 pv | AG18: 5124 | AH18: 55. 12.05. 1974 SMJ - PuMu 10-1
B19: Ylempi loppusarja | P19: Lyöty | R19: 19.05. 1974 PuMu - UPV 8-2 | Y19: 3. ottelu | AB19: 25 v 2 kk 13 pv
B20: Alempi loppusarja | P20: Tuotu | R20: 19.05. 1974 PuMu - UPV 8-2 | Y20: 3. ottelu | AB20: 25 v 2 kk 13 pv
B21: KAIKKI | E21: 82 | F21: 3 | G21: 62 | H21: 25 | I21: 161 | K21: 0.79 | L21: 0.30 | M21: 4.13 | N21: 52.3 % | P21: Kunnari | R21: 07.07. 1974 PuMu - SMJ 3-4 | Y21: 12. ottelu | AB21: 25 v 4 kk 1 pv
B23: Seurat | D23: SoJy = Sotkamon Jymy (1909), kasvattajaseura
D24: PuMu = Helsingin Puna-Mustat (1941)
D25: Lippo = Oulun Lippo (1955)

Sheet MYP, MSS
B1: Tapio Väisänen | E1: 6.3.1949 Sotkkamo
B2: YKKÖSPESIS | E2: Runkosarja | L2: Runkosarja TOP-10 | Q2: Jatkosarjat | X2: SUOMENSARJA | AA2: Runkosarja | AH2: Runkosarja TOP-10 | AM2: Jatkosarjat
B3: Vuosi | C3: Sija | D3: Seura | E3: OTT | F3: KUN | G3: LÖI | H3: TOI | I3: KL | J3: KL-% | L3: LÖI | M3: TOI | N3: L+T | O3: KL | Q3: OTT | R3: KUN | S3: LÖI | T3: TOI | U3: KL | V3: KL-% | X3: Vuosi | Y3: Sija | Z3: Seura | AA3: OTT | AB3: KUN | AC3: LÖI | AD3: TOI | AE3: KL | AF3: KL-% | AH3: LÖI | AI3: TOI | AJ3: L+T | AK3: KL | AM3: OTT | AN3: KUN | AO3: LÖI | AP3: TOI | AQ3: KL | AR3: KL-%
X4: 1976 | Y4: 1. | Z4: Lippo
X6: 1978 | Y6: 2. | Z6: Lippo
X7: 1979 | Y7: 2. | Z7: Lippo
X8: 1980 | Y8: 2. | Z8: Lippo
B9: 1981 | C9: 3. | D9: Lippo | E9: 10 | F9: 0 | G9: 13 | H9: 9 | I9: 57 | J9: 56.4 % | Q9: 10 | R9: 0 | S9: 10 | T9: 10
B11: 1983 | C11: 6. | D11: Lippo | E11: 10 | F11: 0 | G11: 9 | H11: 1 | Q11: 10 | R11: 0 | S11: 3 | T11: 5
B12: YHTEENSÄ | E12: =SUM(E4:E11) -> 20 | F12: =SUM(F4:F11) -> 0 | G12: =SUM(G4:G11) -> 22 | H12: =SUM(H4:H11) -> 10 | I12: =SUM(I4:I11) -> 57 | J12: 0.0 % | K12: =SUM(K4:K11) -> 0 | Q12: =SUM(Q4:Q11) -> 20 | R12: =SUM(R4:R11) -> 0 | S12: =SUM(S4:S11) -> 13 | T12: =SUM(T4:T11) -> 15 | U12: =SUM(U4:U11) -> 0 | V12: 0.0 % | W12: =SUM(W4:W11) -> 0 | X12: YHTEENSÄ | AA12: =SUM(AA4:AA11) -> 0 | AB12: =SUM(AB4:AB11) -> 0 | AC12: =SUM(AC4:AC11) -> 0 | AD12: =SUM(AD4:AD11) -> 0 | AE12: =SUM(AE4:AE11) -> 0 | AF12: 0.0 % | AG12: =SUM(AG4:AG11) -> 0 | AM12: =SUM(AM4:AM11) -> 0 | AN12: =SUM(AN4:AN11) -> 0 | AO12: =SUM(AO4:AO11) -> 0 | AP12: =SUM(AP4:AP11) -> 0 | AQ12: =SUM(AQ4:AQ11) -> 0 | AR12: 0.0 % | AS12: =SUM(AS4:AS11) -> 0
B14: KAIKKI OTTELUT | E14: OTT | F14: KUN | G14: LÖI | H14: TOI | I14: KL | J14: KL-% | L14: ka/L | M14: ka/T | N14: ka/l+t | O14: ka/kl | R14: Seurat | T14: SoJy = Sotkamon Jymy (1909), kasvattajaseura
B15: SUPERPESIS | E15: 82 | F15: 3 | G15: 62 | H15: 25 | I15: 161 | J15: 52.3 % | K15: =PRODUCT(I15/J15) -> 307.8393881 | L15: =PRODUCT((F15+G15)/E15) -> 0.79 | M15: =PRODUCT(H15/E15) -> 0.30 | N15: =PRODUCT((F15+G15+H15)/E15) -> 1.10 | O15: =PRODUCT(I15/39) -> 4.13 | T15: PuMu = Helsingin Puna-Mustat (1941)
B16: YKKÖSPESIS | E16: =PRODUCT(E12+Q12) -> 40 | F16: =PRODUCT(F12+R12) -> 0 | G16: =PRODUCT(G12+S12) -> 35 | H16: =PRODUCT(H12+T12) -> 25 | I16: =PRODUCT(I12+U12) -> 57 | J16: 0.0 % | K16: =PRODUCT(K12+W12) -> 0 | L16: =PRODUCT((F16+G16)/E16) -> 0.88 | M16: =PRODUCT(H16/E16) -> 0.63 | N16: =PRODUCT((F16+G16+H16)/E16) -> 1.50 | O16: =PRODUCT(I16/10) -> 5.70 | T16: Lippo = Oulun Lippo (1955)
B17: SUOMENSARJA | E17: =PRODUCT(AA12+AM12) -> 0 | F17: =PRODUCT(AB12+AN12) -> 0 | G17: =PRODUCT(AC12+AO12) -> 0 | H17: =PRODUCT(AD12+AP12) -> 0 | I17: =PRODUCT(AE12+AQ12) -> 0 | J17: 0.0 % | K17: =PRODUCT(AG12+AS12) -> 0 | L17: 0.00 | M17: 0.00 | N17: 0.00 | O17: 0.00
B18: YHTEENSÄ | E18: =SUM(E15:E17) -> 122 | F18: =SUM(F15:F17) -> 3 | G18: 97 | H18: 50 | I18: 218 | J18: 0.0 % | K18: =SUM(K15:K17) -> 307.8393881 | L18: =PRODUCT((F18+G18)/E18) -> 0.82 | M18: =PRODUCT(H18/E18) -> 0.41 | N18: =PRODUCT((F18+G18+H18)/E18) -> 1.23 | O18: =PRODUCT(I18/49) -> 4.45

Sheet Pelinjohtaja
B1: PELINJOHTAJAKORTTI
B2: Tapio Väisänen | D2: 6.3.1949 Sotkamo
B3: MSU | C3: Runkosarja | K3: Ylempi loppusarja | O3: Alempi loppusarja | T3: Mitalit | W3: Huomautuksia
B4: Vuosi | C4: Seura | D4: Sija | E4: O | F4: V | G4: T | H4: H | I4: Voitto-% | K4: O | L4: V | M4: H | N4: Voitto-% | O4: O | P4: V | Q4: H | R4: Voitto-% | S4: hSM | T4: 1 | U4: 2 | V4: 3
B5: 1989 | C5: Lippo | D5: 2. | E5: MYP, 22 ottelua
B6: 1990 | C6: Lippo | D6: 9. | E6: 26 | F6: 11 | G6: 1 | H6: 14 | I6: =PRODUCT(F6/E6) -> 42.3 %
B7: 1991 | C7: Lippo | D7: 9. | E7: 26 | F7: 11 | G7: 2 | H7: 13 | I7: =PRODUCT(F7/E7) -> 42.3 %
B8: 1996 | C8: Lippo | D8: 6. | E8: 9 | F8: 3 | G8: 0 | H8: 6 | I8: =PRODUCT(F8/E8) -> 33.3 % | S8: 1
B9: 2002 | C9: KiimU | D9: 12. | E9: MYP, 22 ottelua
B10: 2003 | C10: KiimU | D10: 16. | E10: MYP, 22 ottelua
B11: 2005 | C11: IiU | D11: 14. | E11: MYP, 16 ottelua
B12: Yhteensä | E12: =SUM(E5:E11) -> 61 | F12: =SUM(F5:F11) -> 25 | G12: =SUM(G5:G11) -> 3 | H12: =SUM(H5:H11) -> 33 | I12: =PRODUCT(F12/E12) -> 41.0 % | K12: =SUM(K5:K11) -> 0 | L12: =SUM(L5:L11) -> 0 | M12: =SUM(M5:M11) -> 0 | N12: 0.0 % | O12: =SUM(O5:O11) -> 0 | P12: =SUM(P5:P11) -> 0 | Q12: =SUM(Q5:Q11) -> 0 | R12: 0.0 % | S12: =SUM(S5:S11) -> 1 | T12: =SUM(T5:T11) -> 0 | U12: =SUM(U5:U11) -> 0 | V12: =SUM(V5:V11) -> 0
B14: URA SUPERISSA | E14: O | F14: V | G14: T | H14: H | I14: Voitto-% | K14: PLAY OFF | N14: SARJAT | O14: O | P14: V | Q14: H | R14: Voitto-%
B15: Runkosarja | E15: =PRODUCT(E12) -> 61 | F15: =PRODUCT(F12) -> 25 | G15: =PRODUCT(G12) -> 3 | H15: =PRODUCT(H12) -> 33 | I15: =PRODUCT(F15/E15) -> 41.0 % | K15: Puolivälierät
B16: Ylempi loppusarja | K16: Välierät
B17: Alempi loppusarja | K17: Finaalit
B18: KAIKKI | E18: =SUM(E15:E17) -> 61 | F18: =SUM(F15:F17) -> 25 | G18: =SUM(G15:G17) -> 3 | H18: =SUM(H15:H17) -> 33 | I18: =PRODUCT(F18/E18) -> 41.0 % | K18: KAIKKI
B20: Seurat: | C20: Lippo = Oulun Lippo (1955)
C21: KiimU = Kiimingin Urheilijat (1938)
C22: IiU = Iin Urheilijat (1945)
